{"text_format":"1","workbook":"xlsx","n_sheets":1,"sheets":["中心極限定理"],"not_rendered":{"charts":0,"images":1,"macros":1,"external_links":0,"defined_names":23,"comments":0,"pivot_tables":0},"unopened":[],"bounds":{"document_bytes":16777216,"sheet_cells":100000,"rows_first":2000,"rows_last":500,"rows_between":2000,"halvings":0,"cell_chars":16384,"cell_head_chars":4096},"cells_cut":0,"cells_raw":0,"read":"whole","date_system":"1900"}

{"sheet":"中心極限定理","index":0,"n_rows":25,"n_cols":54,"rows_kept":25,"cut":false,"hidden":false,"merged":[[20,36,21,36],[0,11,1,13],[2,12,3,12],[0,14,1,18],[2,16,3,16],[16,36,17,36],[20,32,21,32],[16,32,17,32],[16,33,17,35],[20,33,21,35],[14,32,15,37],[18,32,19,37],[7,28,7,31],[8,10,9,21],[8,1,9,2],[12,22,13,24],[5,4,6,8],[5,1,6,2],[2,8,3,8],[2,6,3,6],[2,4,3,4],[2,2,3,2],[2,1,3,1]]}
["標本平均の分布",null,null,null,null,null,null,null,null,null,null,"母平均m",null,null,"母標準偏差σ",null,null,null,null,null,null,null,null,null,null,null,null,null,null,null,null,null,null,null,null,null,null,null,null,null,null,null,null,null,null,null,{"$f":"NOW()","v":45987.759648495368}]
[null,null,null,null,null,null,null,null,null,null,null,null,null,null,null,null,null,null,null,null,null,null,null,null,null,null,null,null,null,null,null,null,null,null,null,null,null,null,null,null,null,null,null,null,null,"time",{"$f":"VALUE(RIGHT(TEXT(AU1, \"hh:mm:ss.000\"),3))+VALUE(RIGHT(TEXT(AU1, \"hh:mm:ss\"),2))*1000+MINUTE(AU1)*600000","v":7854630}]
[null,"カード",1,null,2,null,3,null,4,null,null,null,{"$f":"AVERAGE(C3:I4)","v":2.5},null,null,null,{"$f":"_xlfn.STDEV.P(C3:I4)","v":1.1180339887498949}]
[null,null,null,null,null,null,null,null,null,null,null,null,null,null,null,null,null,null,null,null,null,null,{"$f":"\"標本平均を \"&Experment&\" 個記録する\"","v":"標本平均を 1 個記録する"},null,null,null,null,null,null,null,null,null,null,null,null,null,null,null,null,null,null,null,null,null,null,"Interval",{"$f":"VLOOKUP(AC8,BA15:BB17,2,FALSE)","v":0}]
[null,null,null,null,null,null,null,null,null,null,null,null,"取り出す番号の期待値",null,null,null,null,null,null,null,null,null,null,null,null,null,null,null,null,null,null,null,null,null,null,null,null,null,null,null,null,null,null,null,null,"Num",{"$f":"MOD(count-1,10)+1","v":10}]
[null,"抽出↓ ",null,null,"標本の大きさ",null,null,null,null,null,null,null,null,null,null,null,null,null,null,null,null,null,null,null,null,null,null,null,null,null,null,null,null,null,null,null,null,null,null,null,null,null,null,null,null,"Mum",{"$f":"ROUNDDOWN((count-1)/10,0)*2","v":0}]
[null,null,null,null,null,null,null,null,null,null,null,null,null,null,null,null,null,null,null,null,null,null,null,null,null,null,null,null,null,null,null,null,null,null,null,null,null,null,null,null,null,null,null,null,null,"Value",{"$f":"ROUNDUP(RAND()/0.25,0)","v":4}]
[null,"X",null,null,null,"n＝",6,null,null,null,null,null,null,null,null,null,null,null,null,null,null,null,null,null,null,null,null,null,{"$f":"VLOOKUP(AZ14,AZ15:BA17,2,FALSE)","v":"速く"},null,null,null,null,null,null,null,null,null,null,null,null,null,null,null,null,"Sample AV",{"$f":"AVERAGE(C12:U12)","v":{"$error":"#DIV/0!"}}]
[null,"記録↓ ",null,null,null,null,null,null,null,null,{"$f":"\"標本 \"&Kosuu&\" 個を抽出し番号の平均値を計算する\"","v":"標本 6 個を抽出し番号の平均値を計算する"},null,null,null,null,null,null,null,null,null,null,null,null,null,null,null,null,null,null,null,null,null,null,null,null,null,null,null,null,null,null,null,null,null,null,"Sample Std",{"$f":"_xlfn.STDEV.P(C12:O12)","v":{"$error":"#DIV/0!"}}]
[null,null,null,null,null,null,null,null,null,null,null,null,null,null,null,null,null,null,null,null,null,null,null,null,null,null,null,null,null,null,null,null,null,null,null,null,null,null,null,null,null,null,null,null,null,"Mean",{"$f":"AVERAGE(Result)","v":{"$error":"#DIV/0!"}}]
[null,null,"X1",null,"X2",null,"X3",null,"X4",null,"X5",null,"X6",null,"X7",null,"X8",null,"X9",null,"X10",null,null,null,"標本平均",null,null,null,"実験回数",null,null,null,null,null,null,null,null,null,null,null,null,null,null,null,null,"AV Std",{"$f":"_xlfn.STDEV.P(Result)","v":{"$error":"#DIV/0!"}}]
[null,"標本",null,null,null,null,null,null,null,null,null,null,null,null,null,null,null,null,null,null,null,null,"→",null,null,null,null,null,1]
[null,null,null,null,null,null,null,null,null,null,null,null,null,null,null,null,null,null,null,null,null,null,"記録↓",null,null,null,null,"count"]
[null,"標本平均の度数分布",null,null,null,null,null,null,null,null,null,null,null,null,null,null,null,null,null,null,null,null,null,null,null,null,null,null,null,null,null,null,null,null,null,null,null,null,null,null,null,null,null,null,null,null,null,null,null,null,null,3]
[null,"階級","度数",null,null,null,null,null,null,null,null,null,null,null,null,null,null,null,null,null,null,null,null,null,null,null,null,null,null,null,null,null,2.4,null,null,null,null,null,null,null,null,null,null,null,0.43333333333333302,null,null,null,null,null,null,1,"ゆっくり",1000]
[null,{"$f":"ROUND(AS16,1)&AT16&ROUND(AU16,1)","v":"1～1.4"},{"$f":"AV16","v":0},{"$f":"REPT(\"l\",C16)","v":""},null,null,null,null,null,null,null,null,null,null,null,null,null,null,null,null,null,null,null,null,null,null,null,null,null,null,null,null,null,null,null,null,null,null,null,null,null,null,null,null,"1","～",1.4,{"$f":"COUNTIF(Result,\"<=\"&AU16)","v":0},1,10,null,2,"ややゆっくり",250]
[null,"1.4～1.8",{"$f":"AV17-AV16","v":0},"",null,null,null,null,null,null,null,null,null,null,null,null,null,null,null,null,null,null,null,null,null,null,null,null,null,null,null,null,null,"→　期待値",null,null,{"$f":"M3","v":2.5},null,null,null,null,null,null,null,{"$f":"AS16+$AS$15","v":1.4333333333333331},"～",{"$f":"AU16+$AS$15","v":1.833333333333333},0,2,20,null,3,"速く",0]
[null,{"$f":"ROUND(AS18,1)&AT18&ROUND(AU18,1)","v":"1.9～2.3"},0,"",null,null,null,null,null,null,null,null,null,null,null,null,null,null,null,null,null,null,null,null,null,null,null,null,null,null,null,null,null,null,null,null,null,null,null,null,null,null,null,null,1.8666666666666663,"～",{"$f":"AU17+$AS$15","v":2.2666666666666662},0,3,30]
[null,"2.3～2.7",0,"",null,null,null,null,null,null,"←",null,null,null,null,null,null,null,null,null,null,null,null,null,null,null,null,null,null,null,null,null,{"$f":"\"標本平均\"&Experment&\"個の標準偏差\"","v":"標本平均1個の標準偏差"},null,null,null,null,null,null,null,null,null,null,null,2.2999999999999994,"～",2.6999999999999993,0,4,40]
[null,"2.7～3.1",0,"",null,null,null,null,null,null,null,null,null,null,null,null,null,null,null,null,null,null,null,null,null,null,null,null,null,null,null,null,null,null,null,null,null,null,null,null,null,null,null,null,2.7333333333333325,"～",3.1333333333333324,0,5,50]
[null,"3.2～3.6",0,"",null,null,null,null,null,null,null,null,null,null,null,null,null,null,null,null,null,null,null,null,null,null,null,null,null,null,null,null,null,"→　期待値",null,null,{"$f":"Q3/SQRT(Kosuu)","v":0.45643546458763851},null,null,null,null,null,null,null,3.1666666666666656,"～",3.5666666666666655,0,6,60]
[null,"3.6～4",0,"",null,null,null,null,null,null,null,null,null,null,null,null,null,null,null,null,null,null,null,null,null,null,null,null,null,null,null,null,null,null,null,null,null,null,null,null,null,null,null,null,3.5999999999999988,"～",3.9999999999999987,0,7,70]
[null,"階級の幅 0.4",null,null,null,null,null,null,null,null,null,null,null,null,null,null,null,null,null,null,null,null,null,null,null,null,null,null,null,null,null,null,null,null,null,null,null,{"$f":"Q3","v":1.1180339887498949},null,null,null,null,null,null,null,null,null,0,8,80]
[null,null,null,null,null,null,null,null,null,null,null,null,null,null,null,null,null,null,null,null,null,null,null,null,null,null,null,null,null,null,null,null,null,null,null,null,null,{"$f":"\"√\"&Kosuu","v":"√6"},null,null,null,null,null,null,null,null,null,null,9,90]
[null,null,null,null,null,null,null,null,null,null,null,null,null,null,null,null,null,null,null,null,null,null,null,null,null,null,null,null,null,null,null,null,null,null,null,null,null,null,null,null,null,null,null,null,null,null,null,null,10,100]